fUSD/lending_fUSD_20241122
["ID","MTS","AMOUNT","RATE_DAILY","PERIOD"]
[342968674,1732235449914,-8613.6783062,0.000598,120]
[342968675,1732235449926,-12244.1444716,0.000598,120]
[342968676,1732235449938,-2432.91376533,0.000598,120]
[342968677,1732235449955,-500.0,0.00058997,120]
[342968678,1732235449968,-21928.43603846,0.000598,120]
[342968679,1732235450094,-500.0,0.00057534,120]
[342968680,1732235450105,-5.8228,0.00057534,120]
[342968681,1732235450116,-494.1772,0.00057534,120]
[342968682,1732235450127,-500.0,0.00057534,120]
[342968683,1732235450137,-500.0,0.00057998,120]
[342968684,1732235450148,-94.54694878,0.00058489,120]
[342968685,1732235450160,-405.45305122,0.00058489,120]
[342968686,1732235450170,-150.0,0.00058489,30]
[342968687,1732235450180,-165.0850688,0.00058498,120]
[342968688,1732235450190,-1177.66205648,0.000589,21]
[342968689,1732235450202,-422.33794352,0.000589,21]
[342968690,1732235450211,-500.0,0.00058903,120]
[342968691,1732235450222,-500.0,0.00058997,120]
[342968692,1732235450231,-422.18205648,0.00058997,120]
[342968693,1732235450247,-500.0,0.00041888,30]
[342968694,1732235450257,-77.81794352,0.00058997,120]
[342968695,1732235450267,-12092.51856903,0.000598,120]
[342968696,1732235450279,-4732.9047737,0.000598,120]
[342968697,1732235450294,-44812.58513269,0.000598,120]
[342968698,1732235450306,-357.73592905,0.000598,120]
[342968702,1732235855683,-150.0,0.00017287,2]
[342968704,1732235881007,157.77,0.00015342,2]
[342968705,1732235970934,275.0,0.00019178,2]
[342968708,1732236247215,250.0,0.00019082,2]
[342968729,1732236631910,-157.77,0.00028858,2]
[342968730,1732236631925,-250.0,0.00031,2]
[342968731,1732236631935,-645.0,0.000312,2]
[342968732,1732236631946,-801.66275267,0.000315,30]
[342968733,1732236631956,-500.0,0.0003151,30]
[342968734,1732236631965,-370.96966247,0.0003151,30]
[342968735,1732236631975,-300.0,0.00033,2]
[342968736,1732236631984,-150.0,0.00033808,2]
[342968737,1732236631993,-150.0,0.00034548,10]
[342968738,1732236632003,-350.0,0.00035,2]
[342968739,1732236632012,-400.0,0.00037,2]
[342968740,1732236632021,-1573.25,0.00037,10]
[342968741,1732236632032,-204.46920487,0.00037465,120]
[342968742,1732236632041,-773.52775828,0.00037465,120]
[342968743,1732236632051,-450.0,0.00039,2]
[342968744,1732236632062,-163.97,0.000419,2]
[342968745,1732236632072,-550.0,0.00042198,5]
[342968746,1732236632082,-280.0,0.00042198,60]
[342968747,1732236632091,-2165.0,0.00042199,117]
[342968748,1732236632101,-157.77,0.00042374,2]
[342968749,1732236632110,-152.28,0.000425,33]
[342968750,1732236632120,-152.28,0.000425,33]
[342968751,1732236632130,-307.16,0.000427,63]
[342968752,1732236632139,-1003.26,0.000427,63]
[342968753,1732236632148,-683.443412,0.000428,30]
[342968754,1732236632159,-565.54,0.00044053,2]
[342968755,1732236632168,-150.0,0.00044419,120]
[342968756,1732236632177,-150.33,0.00044792,2]
[342968757,1732236632187,-150.0,0.00044986,120]
[342968758,1732236632197,-1111.18189353,0.00045063,2]
[342968760,1732236632213,-2530.84810647,0.00045063,2]
[342968762,1732236632222,-1869.7,0.00045109,2]
[342968764,1732236632232,-156.59,0.00045132,2]
[342968766,1732236632242,-300.0,0.00045132,4]
[342968768,1732236632251,-1173.73,0.00045154,2]
[342968770,1732236632261,-2319.13189356,0.00045218,2]
[342968773,1732236632272,-5503.15083498,0.00045218,2]
[342968775,1732236632284,-2583.5000007,0.00045218,2]
[342968777,1732236632298,-1962.0,0.00045218,2]
[342968788,1732236632388,-8718.16277065,0.00045218,2]
[342969327,1732236637829,-224.14388761,0.00035,120]
[342969330,1732236637844,-2937.76450011,0.00045218,2]
[342969333,1732236637855,-986.0,0.00045231,2]
[342969336,1732236637865,-500.0,0.00045231,2]
[342969339,1732236637875,-185.0,0.00045247,2]
[342969341,1732236637885,-250.0,0.00045279,120]
[342969343,1732236637896,-164.52,0.00045355,2]
[342969345,1732236637906,-399.8,0.00045375,120]
[342969347,1732236637915,-996.8,0.00045409,2]
[342969349,1732236637925,-1000.0,0.00045679,7]
[342969351,1732236637935,-2000.0,0.00045679,7]
[342969353,1732236637946,-1500.0,0.00045756,120]
[342969355,1732236637956,-250.0,0.00045817,120]
[342969357,1732236637966,-250.0,0.00045887,2]
[342969359,1732236637975,-3063.77271578,0.00045935,2]
[342969361,1732236637986,-7000.0,0.00045945,7]
[342969363,1732236637995,-121.24413745,0.00045955,120]
[342969365,1732236638008,-28.75586255,0.00045955,120]
[342969367,1732236638018,-1000.0,0.00045976,2]
[342969369,1732236638027,-136.94950937,0.0004602,2]
[342969371,1732236638039,-91.58049063,0.0004602,2]
[342969373,1732236638049,-2000.0,0.00046026,120]
[342969375,1732236638059,-348.41950937,0.00046044,2]
[342969378,1732236638075,-3166.62687809,0.00046044,2]
[342969380,1732236638090,-500.0,0.00045063,2]
[342969382,1732236638099,-3973.06322101,0.00046044,2]
[342969386,1732236638121,-255.18236197,0.00046044,2]
[342969388,1732236638133,-333.37312191,0.00046044,2]
[342969390,1732236638144,-684.3000014,0.00046044,2]
[342969392,1732236638155,-393.01182328,0.00046044,2]
[342969394,1732236638168,-962.307125,0.00046044,2]
[342969397,1732236638179,-13783.71595797,0.00046044,2]
[342969399,1732236638189,-157.45,0.00046164,120]
[342969401,1732236638199,-155.89,0.00046167,120]
[342969418,1732236638371,-565.54,0.00046317,2]
[342969420,1732236638382,-167.14,0.00046317,2]
[342969422,1732236638392,-620.973,0.00046385,77]
[342969424,1732236638402,-180.126,0.00046385,77]
[342969426,1732236638412,-158.56,0.00046385,2]
[342969427,1732236638422,-183.08,0.00046512,2]
[342969428,1732236638432,-9620.43,0.000467,7]
[342969429,1732236638441,-152.28,0.000468,42]
[342969430,1732236638451,-152.28,0.000468,42]
[342969431,1732236638461,-152.28,0.000468,42]
[342969432,1732236638470,-152.28,0.000468,42]
[342969433,1732236638479,-238.0,0.00047,2]
[342969434,1732236638488,-240.08,0.00047,120]
[342969435,1732236638498,-152.803,0.0004713,120]
[342969436,1732236638507,-219.67,0.00047166,2]
[342969437,1732236638516,-855.32,0.00047589,10]
[342969438,1732236638525,-1000.0,0.00047599,2]
[342969439,1732236638534,-1000.0,0.00047599,2]
[342969441,1732236638543,-1000.0,0.00047599,2]
[342969442,1732236638553,-1000.0,0.00047599,2]
[342969444,1732236638563,-1000.0,0.00047599,2]
[342969446,1732236638577,-1000.0,0.00047599,2]
[342969449,1732236638587,-1000.0,0.00047599,2]
[342969451,1732236638598,-1000.0,0.00047599,2]
[342969453,1732236638607,-1000.0,0.00047599,2]
[342969454,1732236638617,-1000.0,0.00047599,2]
[342969457,1732236638627,-1000.0,0.00047599,2]
[342969458,1732236638636,-1000.0,0.00047599,2]
[342969461,1732236638646,-1000.0,0.00047599,2]
[342969462,1732236638656,-1000.0,0.00047599,2]
[342969465,1732236638667,-1000.0,0.00047599,2]
[342969466,1732236638676,-1000.0,0.00047599,2]
[342969469,1732236638686,-1000.0,0.00047599,2]
[342969470,1732236638696,-1000.0,0.00047599,2]
[342969473,1732236638705,-1000.0,0.00047599,2]
[342969475,1732236638715,-1000.0,0.00047599,2]
[342969477,1732236638724,-1000.0,0.00047599,2]
[342969479,1732236638733,-1000.0,0.00047599,2]
[342969480,1732236638743,-1088.0,0.00047599,2]
[342969483,1732236638753,-1137.3,0.000477,7]
[342969485,1732236638762,-263.743,0.00047865,2]
[342969487,1732236638772,-634.7013,0.00047865,2]
[342969489,1732236638781,-3107.58,0.00047965,2]
[342969491,1732236638791,-768.25712011,0.00048,120]
[342969493,1732236638802,-219.67,0.00048536,2]
[342969495,1732236638811,-565.54,0.0004858,2]
[342969497,1732236638824,-155.89,0.00048894,120]
[342969499,1732236638834,-393.35,0.00048965,7]
[342969501,1732236638843,-150.0,0.00049327,120]
[342969503,1732236638853,-2846.9,0.000497,7]
[342969505,1732236638862,-200.0,0.00049912,120]
[342969507,1732236638872,-1050.0,0.0005,120]
[342969509,1732236638882,-10000.0,0.0005,30]
[342969511,1732236638891,-3226.0,0.0005,12]
[342969513,1732236638901,-520.74432926,0.0005,120]
[342969515,1732236638910,-250.0,0.0005,120]
[342969517,1732236638919,-49591.14,0.0005037,7]
[342969519,1732236638929,-743.38360035,0.00050481,15]
[342969521,1732236638938,-1256.0,0.00050559,120]
[342969523,1732236638947,-564.0,0.00050559,120]
[342969525,1732236638956,-629.0,0.00050559,120]
[342969527,1732236638966,-1927.0,0.00050559,120]
[342969529,1732236638974,-815.0,0.00050559,2]
[342969531,1732236638984,-1260.0,0.00050559,120]
[342969533,1732236638993,-919.0,0.00050559,120]
[342969535,1732236639003,-3490.0,0.00050559,120]
[342969537,1732236639013,-150.0,0.00050559,120]
[342969539,1732236639023,-150.0,0.00050559,120]
[342969541,1732236639032,-226.0,0.00050559,2]
[342969543,1732236639042,-166.1,0.00050559,120]
[342969545,1732236639051,-281.23,0.00050559,120]
[342969547,1732236639062,-5940.0,0.00050559,120]
[342969549,1732236639074,-1162.0,0.00050559,120]
[342969551,1732236639084,-173.351,0.00050559,120]
[342969553,1732236639093,-150.0,0.00050559,2]
[342969555,1732236639103,-200.0,0.00050559,120]
[342969557,1732236639112,-291.473,0.00050559,120]
[342969559,1732236639122,-13657.0,0.00050559,120]
[342969561,1732236639132,-250.0,0.00050559,120]
[342969563,1732236639141,-1093.0,0.00050559,120]
[342969565,1732236639151,-796.2394,0.00050581,2]
[342969567,1732236639161,-10289.6368,0.00050581,2]
[342969570,1732236639170,-1582.9275,0.00050581,2]
[342969572,1732236639180,-1825.6418,0.00050581,2]
[342969574,1732236639190,-1068.0833,0.00050581,2]
[342969575,1732236639199,-254.79753432,0.00050581,22]
[342969577,1732236639209,-152.737,0.0005063,120]
[342969579,1732236639218,-500.37878878,0.00050673,10]
[342969581,1732236639227,-500.0,0.00050673,7]
[342969583,1732236639236,-1000.0,0.0005068,30]
[342969585,1732236639246,-155.94391274,0.00050681,30]
[342969587,1732236639255,-151.0,0.00050768,2]
[342969589,1732236639265,-565.54,0.00050844,2]
[342969591,1732236639274,-2000.0,0.00050987,120]
[342969593,1732236639283,-491.92,0.00051,7]
[342969595,1732236639294,-152.28,0.00051,48]
[342969597,1732236639303,-152.28,0.00051,48]
[342969599,1732236639312,-152.28,0.00051,48]
[342969601,1732236639327,-152.28,0.00051,48]
[342969603,1732236639338,-399.8,0.00051046,120]
[342969605,1732236639347,-35.48212679,0.00051221,7]
[342969622,1732236639493,-464.51787321,0.00051221,7]
[342969624,1732236639504,-322.53847,0.00051481,2]
[342969626,1732236639513,-500.0,0.00051573,2]
[342969628,1732236639522,-500.0,0.0005158,31]
[342969630,1732236639531,-381.73419001,0.0005158,31]
[342969632,1732236639543,-118.26580999,0.0005158,31]
[342969634,1732236639552,-282.17419001,0.0005158,31]
[342969637,1732236639572,-217.82580999,0.0005158,31]
[342969639,1732236639585,-500.0,0.0005158,31]
[342969641,1732236639594,-500.0,0.0005158,31]
[342969643,1732236639603,-500.0,0.0005158,31]
[342969646,1732236639613,-500.0,0.0005158,31]
[342969648,1732236639623,-500.0,0.0005158,31]
[342969651,1732236639632,-500.0,0.0005158,31]
[342969654,1732236639641,-70.46080594,0.0005158,31]
[342969656,1732236639657,-500.0,0.00045109,2]
[342969658,1732236639666,-429.53919406,0.0005158,31]
[342969660,1732236639676,-415.34683469,0.0005158,31]
[342969662,1732236639687,-84.65316531,0.0005158,31]
[342969665,1732236639697,-500.0,0.0005158,31]
[342969667,1732236639707,-500.0,0.0005158,31]
[342969668,1732236639717,-500.0,0.0005158,31]
[342969670,1732236639727,-500.0,0.0005158,31]
[342969673,1732236639737,-500.0,0.0005158,31]
[342969675,1732236639747,-274.27030772,0.0005158,31]
[342969691,1732236639917,-225.72969228,0.0005158,31]
[342969692,1732236639927,-500.0,0.0005158,31]
[342969693,1732236639936,-500.0,0.0005158,31]
[342969694,1732236639945,-500.0,0.0005158,31]
[342969695,1732236639955,-572.77134251,0.0005158,31]
[342969696,1732236639964,-500.0,0.0005158,31]
[342969697,1732236639973,-500.0,0.0005158,31]
[342969699,1732236639983,-36.49896519,0.0005158,31]
[342969701,1732236639994,-463.50103481,0.0005158,31]
[342969703,1732236640004,-500.0,0.0005158,31]
[342969705,1732236640013,-500.0,0.0005158,31]
[342969707,1732236640023,-500.0,0.0005158,31]
[342969709,1732236640034,-500.0,0.0005158,31]
[342969711,1732236640043,-500.0,0.0005158,31]
[342969713,1732236640053,-500.0,0.0005158,31]
[342969715,1732236640062,-452.09896519,0.0005158,31]
[342969778,1732236642830,-47.90103481,0.0005158,31]
[342969779,1732236642840,-500.0,0.0005158,31]
[342969780,1732236642849,-454.21055012,0.0005158,31]
[342969781,1732236642861,-45.78944988,0.0005158,31]
[342969782,1732236642871,-500.0,0.0005158,31]
[342969783,1732236642880,-375.21085391,0.0005158,31]
[342969784,1732236642891,-124.78914609,0.0005158,31]
[342969785,1732236642901,-500.0,0.0005158,31]
[342969786,1732236642910,-500.0,0.0005158,31]
[342969787,1732236642919,-497.04349051,0.0005158,31]
[342969788,1732236642931,-2.95650949,0.0005158,31]
[342969789,1732236642940,-500.0,0.0005158,31]
[342969790,1732236642950,-500.0,0.0005158,31]
[342969791,1732236642958,-500.0,0.0005158,31]
[342969792,1732236642967,-500.0,0.0005158,31]
[342969793,1732236642976,-500.0,0.0005158,31]
[342969794,1732236642985,-500.0,0.0005158,31]
[342969795,1732236642994,-500.0,0.0005158,31]
[342969796,1732236643004,-500.0,0.0005158,31]
[342969797,1732236643014,-500.0,0.0005158,31]
[342969798,1732236643024,-500.0,0.0005158,31]
[342969799,1732236643033,-500.0,0.0005158,31]
[342969800,1732236643044,-500.0,0.0005158,31]
[342969801,1732236643054,-500.0,0.0005158,31]
[342969802,1732236643064,-500.0,0.0005158,31]
[342969803,1732236643080,-500.0,0.0005158,31]
[342969804,1732236643089,-500.0,0.0005158,31]
[342969805,1732236643099,-500.0,0.0005158,31]
[342969806,1732236643108,-500.0,0.0005158,31]
[342969807,1732236643117,-308.08570473,0.0005158,31]
[342969808,1732236643126,-7336.18371553,0.00051581,7]
[342969809,1732236643149,-88.5373094,0.00051581,7]
[342969810,1732236643181,-500.0,0.00045756,120]
[342969811,1732236643191,-1410.16873746,0.00051581,7]
[342969812,1732236643202,-3825.52021353,0.00051581,7]
[342969813,1732236643214,-3649.9228796,0.00051581,7]
[342969814,1732236643226,-4764.60468876,0.00051581,7]
[342969816,1732236643237,-40505.12717656,0.00051581,7]
[342969820,1732236643264,-402.12068451,0.00051581,7]
[342969822,1732236643276,-2873.1340775,0.00051581,7]
[342969823,1732236643290,-11227.36863913,0.00051581,7]
[342969824,1732236643303,-16122.38093944,0.00051581,7]
[342969825,1732236643315,-779.67149341,0.00051581,7]
[342969842,1732236645817,-500.0,0.00045945,7]
[342969843,1732236645840,-4657.8190213,0.00051581,7]
[342969844,1732236645881,-2496.02171501,0.00051581,7]
[342969845,1732236645896,-683.18923915,0.00051581,7]
[342969846,1732236645910,-743.3523116,0.00051581,7]
[342969847,1732236645923,-6387.43795949,0.00051581,7]
[342969848,1732236645936,-6970.43507906,0.00051581,7]
[342969849,1732236645949,-4521.66041327,0.00051581,7]
[342969850,1732236645962,-446126.08940529,0.00051581,7]
[342969851,1732236645973,-21556.4137714,0.00051581,7]
[342969852,1732236645984,-155.89,0.00051622,120]
[342969853,1732236645995,-1000.0,0.00051723,120]
[342969854,1732236646006,-1000.0,0.000519,18]
[342969855,1732236646017,-150.0,0.00051994,120]
[342969856,1732236646028,-950.0,0.00052,120]
[342969857,1732236646038,-198.0,0.000521,2]
[342969858,1732236646050,-3000.0,0.000521,2]
[342969859,1732236646060,-1000.0,0.00052121,2]
[342969860,1732236646070,-1224.78302874,0.00052239,14]
[342969861,1732236646083,-1224.78302874,0.00052336,14]
[342969862,1732236646094,-2094.4671053,0.00052349,14]
[342969863,1732236646104,-2094.4671053,0.00052354,14]
[342969864,1732236646114,-1224.78302874,0.00052361,14]
[342969865,1732236646125,-2094.4671053,0.00052381,14]
[342969866,1732236646135,-2094.4671053,0.00052386,14]
[342969867,1732236646145,-1224.78302874,0.00052449,14]
[342969868,1732236646156,-2094.4671053,0.00052467,14]
[342969869,1732236646166,-1224.78302874,0.0005248,14]
[342969870,1732236646176,-200.0,0.00052492,120]
[342969871,1732236646186,-2042.0,0.000526,120]
[342969872,1732236646196,-2000.0,0.00052677,120]
[342969873,1732236646207,-240.08,0.00052875,120]
[342969874,1732236646217,-700.0,0.00052876,25]
[342969875,1732236646227,-700.0,0.00052876,25]
[342969876,1732236646238,-700.0,0.00052876,25]
[342969877,1732236646248,-700.0,0.00052876,25]
[342969878,1732236646259,-700.0,0.00052876,25]
[342969879,1732236646269,-700.0,0.00052876,25]
[342969880,1732236646279,-700.0,0.00052876,25]
[342969881,1732236646290,-700.0,0.00052876,25]
[342969882,1732236646304,-700.0,0.00052876,25]
[342969883,1732236646313,-700.0,0.00052876,25]
[342969884,1732236646328,-700.0,0.00052917,25]
[342969885,1732236646341,-700.0,0.00052917,25]
[342969886,1732236646352,-700.0,0.00052917,25]
[342969887,1732236646362,-700.0,0.00052917,25]
[342969888,1732236646379,-700.0,0.00052917,25]
[342969889,1732236646391,-700.0,0.00052917,25]
[342969890,1732236646402,-700.0,0.00052917,25]
[342969891,1732236646413,-700.0,0.00052917,25]
[342969892,1732236646425,-700.0,0.00052917,25]
[342969893,1732236646435,-700.0,0.00052917,25]
[342969894,1732236646446,-565.54,0.00053108,2]
[342969895,1732236646457,-500.0,0.00053122,2]
[342969896,1732236646467,-158.56,0.0005325,2]
[342969897,1732236646478,-1058.356,0.00053559,120]
[342969898,1732236646488,-150.0,0.00053559,120]
[342969899,1732236646499,-150.0,0.00053559,120]
[342969900,1732236646509,-150.0,0.00053559,2]
[342969901,1732236646520,-150.0,0.00053559,120]
[342969902,1732236646531,-150.0,0.00053559,120]
[342969903,1732236646541,-150.0,0.00053559,120]
[342969904,1732236646552,-150.0,0.00053559,120]
[342969905,1732236646563,-1000.0,0.0005395,45]
[342969906,1732236646577,-1000.0,0.00053999,30]
[342969907,1732236646588,-850.0,0.00054,120]
[342969908,1732236646599,-900.0,0.00054,55]
[342969909,1732236646609,-10000.0,0.00054,120]
[342969910,1732236646619,-150.76,0.00054,120]
[342969911,1732236646630,-150.76,0.00054,120]
[342969912,1732236646640,-150.76,0.00054,120]
[342969913,1732236646651,-150.76,0.00054,120]
[342969914,1732236646661,-152.778,0.0005413,120]
[342969915,1732236646671,-155.89,0.00054349,120]
[342969916,1732236646682,-500.0,0.00054367,120]
[342969917,1732236646692,-2000.0,0.00054367,120]
[342969918,1732236646702,-227.0,0.00054367,120]
[342969919,1732236646712,-500.0,0.00054367,120]
[342969920,1732236646723,-200.0,0.00054367,120]
[342969921,1732236646733,-10000.0,0.0005444,30]
[342969922,1732236646743,-546.542,0.0005451,30]
[342969923,1732236646754,-743.38360033,0.00054749,15]
[342969924,1732236646764,-3000.0,0.000548,2]
[342969925,1732236646774,-322.53846989,0.00054974,2]
[342969926,1732236646784,-1000.0,0.00055,40]
[342969927,1732236646794,-152.28,0.000553,54]
[342969928,1732236646804,-152.28,0.000553,54]
[342969929,1732236646814,-152.28,0.000553,54]
[342969930,1732236646828,-152.28,0.000553,54]
[342969931,1732236646839,-565.54,0.00055372,2]
[342969932,1732236646848,-2655.92,0.000557,120]
[342969933,1732236646859,-2000.0,0.00055809,120]
[342969934,1732236646870,-157.77,0.0005589,2]
[342969935,1732236646885,-750.0,0.00056,120]
[342969936,1732236646896,-250.0,0.00056,120]
[342969937,1732236646907,-150.33,0.00056158,120]
[342969938,1732236646918,-1000.0,0.00056344,40]
[342969939,1732236646929,-200.0,0.000565,120]
[342969940,1732236646938,-150.0,0.00056559,120]
[342969941,1732236646949,-150.0,0.00056559,120]
[342969942,1732236646960,-2643.9,0.000567,120]
[342969943,1732236646976,-399.8,0.00056718,120]
[342969944,1732236646986,-155.89,0.00057077,120]
[342969945,1732236646997,-150.0,0.00057092,120]
[342969946,1732236647008,-2000.0,0.0005725,120]
[342969947,1732236647017,-11907.4946,0.00057434,120]
[342969948,1732236647027,-158.51714257,0.00057434,36]
[342969949,1732236647038,-1099.82320826,0.00057434,36]
[342969950,1732236647048,-1000.0,0.0005747,120]
[342969951,1732236647058,-150.76,0.00057497,120]
[342969952,1732236647068,-3000.0,0.000575,90]
[342969953,1732236647081,-51244.0,0.00057507,120]
[342969954,1732236647091,-150.76,0.00057524,120]
[342969955,1732236647101,-1500.0,0.00057533,120]
[342969956,1732236647110,-500.0,0.00057533,120]
[342969957,1732236647120,-500.0,0.00057533,120]
[342969958,1732236647131,-500.0,0.00057533,120]
[342969959,1732236647141,-500.0,0.00057533,120]
[342969960,1732236647151,-500.0,0.00057533,120]
[342969961,1732236647161,-244.41560297,0.00057534,120]
[342969962,1732236647175,-72.11701503,0.00057534,120]
[342969963,1732236647185,-170.542089,0.00057534,120]
[342969964,1732236647195,-316.532618,0.00057534,120]
[342969965,1732236647205,-154.589909,0.00057534,120]
[342969966,1732236647216,-500.0,0.00057534,120]
[342969967,1732236647226,-500.0,0.00057534,120]
[342969968,1732236647237,-500.0,0.00057534,120]
[342969969,1732236647247,-500.0,0.00057534,120]
[342969970,1732236647257,-500.0,0.00057534,120]
[342969971,1732236647267,-500.0,0.00057534,120]
[342969972,1732236647277,-500.0,0.00057534,120]
[342969973,1732236647288,-500.0,0.00057534,120]
[342969974,1732236647300,-502.36745851,0.00057534,120]
[342969975,1732236647310,-500.0,0.00057534,120]
[342969976,1732236647320,-500.0,0.00057534,120]
[342969977,1732236647334,-500.0,0.00057534,120]
[342969978,1732236647344,-500.0,0.00057534,120]
[342969979,1732236647354,-598.88584611,0.00057534,120]
[342969980,1732236647364,-500.0,0.00057534,120]
[342969981,1732236647374,-500.0,0.00057534,120]
[342969982,1732236647385,-500.0,0.00057534,120]
[342969983,1732236647395,-500.0,0.00057534,120]
[342969984,1732236647409,-500.0,0.00057534,120]
[342969985,1732236647419,-500.0,0.00057534,120]
[342969986,1732236647428,-500.0,0.00057534,120]
[342969987,1732236647438,-500.0,0.00057534,120]
[342969988,1732236647448,-500.0,0.00057534,120]
[342969989,1732236647458,-500.0,0.00057534,120]
[342969990,1732236647468,-500.0,0.00057534,120]
[342969991,1732236647478,-507.5560032,0.00057534,120]
[342969992,1732236647488,-500.0,0.00057534,120]
[342969993,1732236647498,-500.0,0.00057534,120]
[342969994,1732236647507,-500.0,0.00057534,120]
[342969995,1732236647518,-648.26,0.00057534,120]
[342969996,1732236647528,-500.0,0.00057534,120]
[342969997,1732236647538,-500.0,0.00057534,120]
[342969998,1732236647548,-500.0,0.00057534,120]
[342969999,1732236647558,-500.0,0.00057534,120]
[342970000,1732236647568,-500.0,0.00057534,30]
[342970001,1732236647580,-500.0,0.00057534,120]
[342970002,1732236647590,-500.0,0.00057534,30]
[342970003,1732236647599,-500.0,0.00057534,120]
[342970004,1732236647610,-500.0,0.00057534,120]
[342970005,1732236647619,-500.0,0.00057534,120]
[342970006,1732236647630,-500.0,0.00057534,120]
[342970007,1732236647641,-500.0,0.00057534,120]
[342970008,1732236647651,-500.0,0.00057534,120]
[342970009,1732236647662,-500.0,0.00057534,120]
[342970010,1732236647676,-500.0,0.00057534,120]
[342970011,1732236647687,-500.0,0.00057534,120]
[342970012,1732236647697,-500.0,0.00057534,120]
[342970013,1732236647706,-500.0,0.00057534,120]
[342970014,1732236647715,-500.0,0.00057534,120]
[342970015,1732236647727,-500.0,0.00057534,120]
[342970016,1732236647740,-500.0,0.00057534,120]
[342970017,1732236647750,-500.0,0.00057534,120]
[342970018,1732236647760,-500.0,0.00057534,120]
[342970019,1732236647772,-500.0,0.00057534,120]
[342970020,1732236647782,-501.88532363,0.00057534,120]
[342970021,1732236647792,-500.0,0.00057534,120]
[342970022,1732236647802,-500.0,0.00057534,120]
[342970023,1732236647812,-500.0,0.00057534,120]
[342970024,1732236647824,-500.0,0.00057534,120]
[342970025,1732236647834,-500.0,0.00057534,120]
[342970026,1732236647843,-500.0,0.00057534,120]
[342970027,1732236647854,-500.0,0.00057534,120]
[342970028,1732236647864,-500.0,0.00057534,120]
[342970029,1732236647874,-500.0,0.00057534,120]
[342970030,1732236647884,-500.0,0.00057534,120]
[342970031,1732236647895,-500.0,0.00057534,120]
[342970032,1732236647905,-500.0,0.00057534,120]
[342970033,1732236647916,-578.41892272,0.00057534,120]
[342970034,1732236647926,-500.0,0.00057534,120]
[342970035,1732236647937,-500.0,0.00057534,120]
[342970036,1732236647947,-500.0,0.00057534,120]
[342970037,1732236647956,-500.0,0.00057534,120]
[342970038,1732236647966,-500.0,0.00057534,120]
[342970039,1732236647977,-500.0,0.00057534,120]
[342970040,1732236647988,-500.0,0.00057534,120]
[342970041,1732236647998,-500.0,0.00057534,120]
[342970042,1732236648008,-500.0,0.00057534,120]
[342970043,1732236648018,-500.0,0.00057534,120]
[342970044,1732236648028,-500.0,0.00057534,120]
[342970045,1732236648037,-500.0,0.00057534,120]
[342970046,1732236648047,-500.0,0.00057534,120]
[342970047,1732236648057,-500.0,0.00057534,120]
[342970048,1732236648067,-500.0,0.00057534,120]
[342970049,1732236648081,-500.0,0.00057534,120]
[342970050,1732236648109,-608.07957079,0.00057534,120]
[342970051,1732236648122,-500.0,0.00057534,120]
[342970052,1732236648132,-500.0,0.00057534,120]
[342970053,1732236648143,-500.0,0.00057534,120]